bitfinex/quotes_SOLUSD_20230701
["timestamp","ask_amount","ask_price","bid_price","bid_amount"]
[1688222721995,22.915,18.46,18.446,55.0]
[1688222722472,20.0,18.466,18.448,22.928]
[1688222722671,22.909,18.464,18.454,22.921]
[1688222722871,20.0,18.463,18.452,22.923]
[1688222723459,20.0,18.465,18.452,22.923]
[1688222723879,22.91,18.463,18.452,22.923]
[1688222724062,20.0,18.462,18.452,22.923]
[1688222724262,42.912,18.462,18.452,22.923]
[1688222725367,97.912,18.462,18.452,22.923]
[1688222728470,55.0,18.461,18.45,22.926]
[1688222728670,22.917,18.458,18.45,22.926]
[1688222729593,22.915,18.46,18.45,22.926]
[1688222730278,75.0,18.462,18.447,59.033]
[1688222730279,97.912,18.462,18.454,22.921]
[1688222730476,55.0,18.462,18.454,22.921]
[1688222730680,22.905,18.468,18.454,22.921]
[1688222731572,47.235,18.468,18.454,22.921]
[1688222731973,22.907,18.466,18.454,22.921]
[1688222732679,55.0,18.467,18.454,22.921]
[1688222733384,77.905,18.467,18.454,22.921]
[1688222744179,24.33,18.468,18.454,22.921]
[1688222744489,24.33,18.468,18.458,81.91]
[1688222748495,153.0202,18.489,18.46,122.61]
[1688222748702,22.886,18.483,18.468,81.867]
[1688222749192,22.886,18.483,18.469,55.0]
[1688222749396,22.884,18.485,18.473,22.898]
[1688222749596,20.0,18.484,18.473,22.898]
[1688222749790,22.888,18.482,18.473,22.898]
[1688222749982,20.0,18.481,18.473,22.898]
[1688222750183,42.889,18.481,18.473,22.898]
[1688222750801,55.0,18.48,18.473,22.898]
[1688222752999,20.0,18.481,18.473,22.898]
[1688222753197,55.0,18.481,18.473,22.898]
[1688222754489,20.0,18.482,18.473,22.898]
[1688222754802,20.0,18.483,18.473,22.898]
[1688222754993,20.0,18.485,18.473,22.898]
[1688222755397,42.883,18.485,18.473,22.898]
[1688222756501,22.882,18.486,18.474,55.0]
[1688222756706,22.882,18.486,18.478,22.891]
[1688222757005,106.257,18.488,18.478,22.891]
[1688222758187,22.877,18.49,18.478,22.891]
[1688222764621,58.884,18.491,18.478,22.891]
[1688222765701,58.884,18.491,18.482,22.886]
[1688222766514,22.872,18.494,18.482,22.886]
[1688222766722,20.0,18.493,18.482,22.886]
[1688222766902,58.884,18.492,18.482,22.886]
[1688222767315,20.0,18.491,18.482,22.886]
[1688222771307,79.56,18.49,18.472,107.567]
[1688222771504,22.883,18.485,18.468,107.589]
[1688222771707,20.0,18.484,18.469,22.903]
[1688222772000,22.889,18.481,18.469,22.903]
[1688222773002,77.889,18.481,18.469,22.903]
[1688222773203,55.0,18.481,18.469,22.903]
[1688222773404,77.887,18.483,18.469,22.903]
[1688222773606,20.0,18.482,18.469,22.903]
[1688222773904,58.968,18.483,18.47,24.56]
[1688222774109,58.968,18.483,18.474,81.843]
[1688222774315,22.879,18.489,18.475,55.0]
[1688222774515,22.879,18.489,18.481,22.888]
[1688222778403,22.879,18.489,18.479,22.89]
[1688222781718,77.876,18.491,18.479,22.89]
[1688222781922,77.876,18.491,18.479,33.72719922]
[1688222787229,77.876,18.491,18.48,24.41]
[1688222787230,55.0,18.491,18.48,24.41]
[1688222787532,22.87,18.496,18.488,22.879]
[1688222788231,58.862,18.497,18.488,22.879]
[1688222788437,22.869,18.497,18.488,22.879]
[1688222793136,55.0,18.496,18.488,22.879]
[1688222793341,22.871,18.495,18.488,22.879]
[1688222793835,22.871,18.495,18.483,58.916]
[1688222794039,22.871,18.495,18.486,22.881]
[1688222795941,55.0,18.496,18.486,22.881]
[1688222796129,22.869,18.497,18.486,22.881]
[1688222797020,55.0,18.496,18.484,22.883]
[1688222797236,20.0,18.495,18.482,22.886]
[1688222797443,22.875,18.492,18.476,166.478]
[1688222797739,20.0,18.491,18.482,22.886]
[1688222798147,42.876,18.491,18.482,22.886]
[1688222800041,42.876,18.491,18.478,58.932]
[1688222800839,42.876,18.491,18.481,22.887]
[1688222801244,22.876,18.491,18.481,22.887]
[1688222802138,58.862,18.498,18.481,22.887]
[1688222802139,22.873,18.494,18.481,22.887]
[1688222802340,20.0,18.493,18.485,22.883]
[1688222802530,42.874,18.493,18.485,22.883]
[1688222806036,42.874,18.493,18.481,97.5649]
[1688222806236,42.874,18.493,18.483,22.884]
[1688222806738,42.874,18.493,18.481,22.888]
[1688222806933,22.874,18.493,18.477,150.0859]
[1688222807234,22.874,18.493,18.478,55.0]
[1688222807439,20.0,18.492,18.482,22.886]
[1688222807649,20.0,18.492,18.485,22.882]
[1688222807823,20.0,18.494,18.485,22.882]
[1688222808645,22.873,18.493,18.485,22.882]
[1688222808846,20.0,18.492,18.485,22.882]
[1688222809139,42.872,18.494,18.485,22.882]
[1688222809661,42.872,18.494,18.477,91.1479]
[1688222810331,55.0,18.493,18.477,91.1479]
[1688222810539,22.879,18.489,18.481,22.887]
[1688222814941,22.879,18.489,18.477,91.1479]
[1688222815143,22.879,18.489,18.479,22.89]
[1688222815342,22.876,18.491,18.479,22.89]
[1688222815545,22.874,18.493,18.48,55.0]
[1688222815745,20.0,18.492,18.483,22.884]
[1688222816340,22.874,18.493,18.483,22.884]
[1688222816929,22.872,18.495,18.483,22.884]
[1688222820848,55.0,18.494,18.483,22.884]
[1688222821036,42.874,18.493,18.483,22.884]
[1688222821349,55.0,18.492,18.483,22.884]
[1688222821551,77.875,18.492,18.483,22.884]
[1688222821850,20.0,18.491,18.483,22.884]
[1688222822050,42.876,18.491,18.483,22.884]
[1688222825442,42.876,18.491,18.481,22.887]
[1688222826245,42.876,18.491,18.477,91.1479]
[1688222826445,42.876,18.491,18.478,55.0]
[1688222827758,42.876,18.491,18.481,22.888]
[1688222833770,22.876,18.491,18.481,22.888]
[1688222834060,193.41424769,18.496,18.477,91.1479]
[1688222834061,22.872,18.495,18.485,22.883]
[1688222834247,22.869,18.497,18.485,22.883]
[1688222834456,58.859,18.502,18.489,22.877]
[1688222834672,20.0,18.501,18.489,22.877]
[1688222834845,22.866,18.5,18.489,22.877]
[1688222843365,75.0,18.501,18.489,22.877]
[1688222843866,20.0,18.501,18.489,22.877]
[1688222844670,42.863,18.501,18.489,22.877]
[1688222848762,22.863,18.501,18.489,22.877]
[1688222848962,22.863,18.501,18.49,55.0]
[1688222849165,22.863,18.501,18.493,22.873]
[1688222850164,77.862,18.503,18.493,22.873]
[1688222850366,22.863,18.501,18.493,22.873]
[1688222850954,20.0,18.502,18.493,22.873]
[1688222851576,22.864,18.501,18.489,10.83719922]
[1688222852864,22.864,18.501,18.492,22.874]
[1688222855482,22.864,18.501,18.489,10.83719922]
[1688222856781,22.864,18.501,18.491,22.874]
[1688222867362,20.0,18.502,18.491,22.874]
[1688222868781,42.862,18.502,18.491,22.874]
[1688222869686,42.862,18.502,18.491,33.71119922]
[1688222871181,20.0,18.502,18.492,10.83719922]
[1688222871390,20.0,18.502,18.495,22.871]
[1688222871687,20.0,18.504,18.495,22.871]
[1688222874993,42.86,18.504,18.495,22.871]
[1688222883193,101.712,18.504,18.49,24.39]
[1688222883380,55.0,18.503,18.485,92.254]
[1688222883694,22.867,18.498,18.486,22.881]
[1688222883897,55.0,18.503,18.486,22.881]
[1688222884094,20.0,18.502,18.486,22.881]
[1688222884386,55.0,18.501,18.486,22.881]
[1688222884595,20.0,18.502,18.486,22.881]
[1688222884793,20.0,18.504,18.487,55.0]
[1688222884994,22.863,18.502,18.492,22.874]
[1688222885178,22.863,18.502,18.493,55.0]
[1688222885493,45.717,18.505,18.493,77.872]
[1688222885676,22.857,18.507,18.493,77.872]
[1688222890595,22.854,18.509,18.493,77.872]
[1688222892795,22.858,18.506,18.493,22.872]
[1688222894505,22.858,18.506,18.494,55.0]
[1688222894794,22.858,18.506,18.497,22.867]
[1688222895003,55.0,18.508,18.497,22.867]
[1688222895681,55.0,18.509,18.497,22.867]
[1688222895879,22.856,18.507,18.497,22.867]
[1688222896099,22.861,18.503,18.49,58.896]
[1688222896501,42.862,18.502,18.494,22.871]
[1688222896682,22.862,18.502,18.494,22.871]
[1688222896999,20.0,18.501,18.49,58.896]
[1688222897192,42.864,18.501,18.492,22.873]
[1688222904001,42.864,18.501,18.49,22.876]
[1688222904304,55.0,18.5,18.486,22.881]
[1688222904603,22.87,18.496,18.486,22.881]
[1688222907006,22.87,18.496,18.483,85.7764]
[1688222907205,22.87,18.496,18.484,55.0]
[1688222907603,22.87,18.496,18.48,115.9289]
[1688222907811,22.87,18.496,18.484,22.883]
[1688222909737,22.87,18.496,18.482,22.886]
[1688222909893,75.0,18.495,18.482,22.886]
[1688222910209,22.875,18.492,18.482,22.886]
[1688222910394,22.877,18.49,18.482,22.886]
[1688222913906,22.877,18.49,18.48,22.888]
[1688222914208,22.877,18.49,18.481,22.887]
[1688222919803,22.877,18.49,18.482,55.0]
[1688222920409,22.877,18.49,18.481,55.0]
[1688222920612,22.877,18.49,18.481,77.888]
[1688222921418,58.932,18.495,18.481,77.888]
[1688222921614,20.0,18.494,18.481,77.888]
[1688222922825,22.877,18.49,18.481,77.888]
[1688222925220,22.875,18.492,18.481,77.888]
[1688222925421,58.932,18.495,18.482,20.0]
[1688222925422,22.873,18.493,18.482,20.0]
[1688222925626,166.281,18.499,18.483,77.884]
[1688222926221,22.872,18.495,18.483,77.884]
[1688222926408,22.872,18.495,18.483,168.308]
[1688222932020,55.0,18.494,18.483,22.884]
[1688222932235,22.876,18.491,18.483,22.884]
[1688222933631,22.876,18.491,18.481,22.887]
[1688222937438,22.874,18.493,18.481,22.887]
[1688222937732,24.48,18.5,18.482,75.0]
[1688222937919,22.869,18.497,18.487,22.88]
[1688222940229,24.48,18.499,18.487,22.88]
[1688222940421,22.867,18.498,18.487,22.88]
[1688222942027,166.234,18.504,18.487,22.88]
[1688222942334,75.0,18.503,18.487,22.88]
[1688222944032,22.866,18.499,18.487,22.88]
[1688222946227,22.866,18.499,18.488,55.0]
[1688222946540,22.866,18.499,18.491,22.875]
[1688222947038,20.0,18.503,18.491,22.875]
[1688222947221,22.863,18.502,18.491,22.875]
[1688222947426,20.0,18.501,18.491,22.875]
[1688222948735,42.862,18.502,18.491,22.875]
[1688222951145,20.0,18.502,18.491,22.875]
[1688222951324,22.863,18.502,18.491,22.875]
[1688222951656,20.0,18.501,18.491,22.875]
[1688222952528,20.0,18.503,18.491,22.875]
[1688222952747,22.862,18.503,18.491,22.875]
[1688222953043,58.83,18.511,18.492,75.0]
[1688222953245,58.83,18.511,18.497,22.868]
[1688222953742,22.854,18.509,18.497,22.868]
[1688222954245,22.854,18.509,18.498,55.0]
[1688222954440,22.854,18.509,18.499,22.865]
[1688222960543,55.0,18.508,18.497,22.868]
[1688222960750,22.859,18.505,18.495,22.87]
[1688222965144,22.857,18.507,18.495,22.87]
[1688222965342,55.0,18.506,18.495,22.87]
[1688222966232,77.857,18.506,18.495,22.87]
[1688222968453,55.0,18.506,18.495,81.75]
[1688222968747,22.855,18.508,18.495,81.75]
[1688222968938,55.0,18.507,18.495,81.75]
[1688222969729,77.856,18.507,18.495,81.75]
[1688222973356,51.418958,18.51,18.495,81.75]
[1688222973658,27.008958,18.51,18.495,81.75]
[1688222973846,55.0,18.511,18.495,81.75]
[1688222974155,81.47986939,18.511,18.495,81.75]
[1688222974359,22.852,18.51,18.495,81.75]
[1688222974547,55.0,18.509,18.495,81.75]
[1688222974752,22.855,18.508,18.495,81.75]
[1688222975354,22.855,18.508,18.499,22.865]
[1688222975536,22.853,18.51,18.499,22.865]
[1688222975741,81.47986939,18.511,18.499,22.865]
[1688222976054,79.32,18.51,18.499,22.865]
[1688222976754,22.854,18.509,18.499,22.865]
[1688222977955,22.854,18.509,18.495,58.88]
[1688222978157,55.0,18.508,18.491,58.891]
[1688222978341,55.0,18.508,18.495,22.87]
[1688222978342,22.861,18.503,18.495,22.87]
[1688222978858,20.0,18.502,18.495,22.87]
[1688222979060,42.862,18.502,18.495,22.87]
[1688222981843,42.862,18.502,18.493,22.872]
[1688222986953,42.862,18.502,18.491,22.875]
[1688222987160,24.15,18.5,18.487,96.0693]
[1688222987354,22.869,18.497,18.487,96.0693]
[1688222988454,22.869,18.497,18.487,118.9493]
[1688222989871,22.869,18.497,18.487,22.88]
[1688222990056,55.0,18.496,18.487,22.88]
[1688222990368,22.872,18.495,18.487,22.88]
[1688222992871,55.0,18.496,18.487,22.88]
[1688222993068,22.868,18.498,18.487,22.88]
[1688222996078,55.0,18.497,18.487,22.88]
[1688222996371,48.3,18.5,18.487,22.88]
[1688222996678,71.165,18.5,18.487,22.88]
[1688222997977,55.0,18.499,18.485,22.882]
[1688222998178,22.871,18.495,18.485,22.882]
[1688222998379,55.0,18.494,18.485,22.882]
[1688222998579,22.874,18.493,18.485,22.882]
[1688222999669,55.0,18.494,18.485,22.882]
[1688222999867,22.871,18.495,18.485,22.882]
[1688223003482,22.869,18.497,18.485,22.882]
[1688223003671,55.0,18.496,18.485,22.882]
[1688223003868,77.87,18.496,18.485,22.882]
[1688223005169,22.868,18.498,18.485,22.882]
[1688223005482,47.015,18.5,18.486,55.0]
[1688223005682,47.015,18.5,18.49,22.876]
[1688223008495,117.20789373,18.502,18.49,22.876]
[1688223008788,70.03544673,18.502,18.49,22.876]
[1688223011404,47.17244673,18.502,18.49,22.876]
[1688223011579,20.0,18.502,18.491,55.0]
[1688223011881,83.156,18.51,18.494,22.871]
[1688223011882,20.0,18.501,18.494,22.871]
[1688223012078,27.183303,18.505,18.494,22.871]
[1688223012281,20.0,18.504,18.494,22.871]
[1688223012801,42.86,18.504,18.494,22.871]
[1688223013101,42.86,18.504,18.492,93.4697]
[1688223013597,42.86,18.504,18.492,116.3427]
[1688223014290,22.86,18.504,18.492,22.873]
[1688223015489,22.858,18.506,18.493,55.0]
[1688223015799,22.856,18.508,18.496,22.868]
[1688223016097,22.854,18.508,18.5,22.863]
[1688223016476,24.32,18.51,18.5,22.863]
[1688223017590,22.853,18.509,18.5,22.863]
[1688223024894,22.853,18.509,18.5,47.233]
[1688223031790,22.853,18.509,18.496,91.1356]
[1688223031997,22.859,18.505,18.496,22.869]
[1688223032200,22.861,18.503,18.496,22.869]
[1688223032401,22.86,18.504,18.496,22.869]
[1688223032608,26.52989612,18.509,18.496,22.869]
[1688223032788,22.854,18.509,18.501,22.863]
[1688223034992,22.854,18.509,18.5,24.37]
[1688223035192,22.854,18.509,18.495,98.9509]
[1688223035395,22.857,18.506,18.499,22.865]
[1688223035903,77.855,18.508,18.499,22.865]
[1688223036213,55.0,18.508,18.499,22.865]
[1688223036399,55.0,18.509,18.499,22.865]
[1688223037808,77.854,18.509,18.499,22.865]
[1688223041412,24.15,18.51,18.499,22.865]
[1688223041614,22.852,18.511,18.5,24.37]
[1688223041816,55.0,18.51,18.503,22.86]
[1688223042117,79.15,18.51,18.503,22.86]
[1688223043014,102.002,18.51,18.503,22.86]
[1688223043519,55.0,18.51,18.503,22.86]
[1688223043719,55.0,18.511,18.503,22.86]
[1688223043922,58.822,18.512,18.503,22.86]
[1688223044112,20.0,18.511,18.503,22.86]
[1688223045018,22.852,18.511,18.503,22.86]
[1688223048700,79.32,18.51,18.495,157.8289]
[1688223048908,22.855,18.508,18.499,22.865]
[1688223052118,5.95994104,18.509,18.499,22.865]
[1688223054225,28.81394104,18.509,18.499,22.865]
[1688223054524,5.95994104,18.507,18.499,22.865]
[1688223054710,77.855,18.508,18.499,22.865]
[1688223054904,47.173,18.51,18.499,22.865]
[1688223055110,1.43359369,18.509,18.499,22.865]
[1688223055310,24.32,18.51,18.499,22.865]
[1688223057126,1.74960181,18.509,18.499,22.865]
[1688223061216,1.74960181,18.511,18.502,22.861]
[1688223061417,20.0,18.512,18.502,22.861]
[1688223061614,5.0997244,18.513,18.502,22.861]
[1688223062127,20.0,18.512,18.502,22.861]
[1688223062329,64.482156,18.514,18.506,22.857]
[1688223063012,42.847,18.514,18.506,22.857]
[1688223063221,42.847,18.514,18.504,22.859]
[1688223063614,42.847,18.514,18.503,96.8122]
[1688223064843,42.847,18.514,18.503,119.6722]
[1688223067827,42.847,18.514,18.503,22.86]
[1688223068033,58.69273281,18.513,18.501,22.863]
[1688223068217,22.853,18.51,18.501,22.863]
[1688223068741,47.003,18.51,18.499,97.2911]
[1688223068919,0.91502403,18.509,18.499,97.2911]
[1688223069117,22.855,18.508,18.5,22.864]
[1688223070948,22.855,18.508,18.494,58.88]
[1688223071235,22.855,18.508,18.491,27.45975064]
[1688223071236,22.86,18.504,18.496,22.868]
[1688223072038,22.858,18.506,18.496,22.868]
[1688223072235,0.77595223,18.505,18.496,22.868]
[1688223072535,6.99867936,18.508,18.496,22.868]
[1688223072742,22.857,18.506,18.496,22.868]
[1688223074239,55.0,18.505,18.496,22.868]
[1688223074541,24.80003012,18.504,18.496,22.868]
[1688223074728,22.86,18.504,18.496,22.868]
[1688223076243,55.0,18.505,18.496,22.868]
[1688223076453,2.6013861,18.504,18.496,22.868]
[1688223076945,9.78011037,18.507,18.496,22.868]
[1688223077145,55.0,18.506,18.496,22.868]
[1688223077342,9.78011037,18.505,18.496,22.868]
[1688223080731,55.0,18.504,18.496,22.868]
[1688223080931,3.88850755,18.505,18.496,22.868]
[1688223083848,26.74650755,18.505,18.496,22.868]
[1688223084035,55.0,18.504,18.496,22.868]
[1688223085330,55.0,18.505,18.496,22.868]
[1688223085529,1.77712337,18.504,18.496,22.868]
[1688223086231,1.77712337,18.504,18.49,24.37]
[1688223086436,1.77712337,18.504,18.486,197.7791]
[1688223086437,24.32,18.5,18.486,197.7791]
[1688223086748,32.11910942,18.499,18.486,90.2971]
[1688223087040,77.868,18.498,18.486,113.1791]
[1688223087849,77.868,18.498,18.486,22.882]
[1688223102954,77.868,18.498,18.485,22.882]
[1688223106170,77.868,18.498,18.483,22.884]
[1688223111768,77.868,18.498,18.483,81.803]
[1688223112382,22.868,18.498,18.483,81.803]
[1688223113464,22.868,18.498,18.484,55.0]
[1688223113676,22.868,18.498,18.488,22.879]
[1688223114268,22.867,18.498,18.488,22.879]
[1688223115076,24.32,18.5,18.481,90.2971]
[1688223115267,22.867,18.498,18.488,22.879]
[1688223120072,55.0,18.497,18.488,22.879]
[1688223120258,22.87,18.496,18.488,22.879]
[1688223121959,1.530335,18.499,18.488,22.879]
[1688223122274,22.868,18.498,18.49,24.37]
[1688223122464,22.868,18.498,18.491,22.875]
[1688223124561,22.868,18.498,18.49,24.37]
[1688223124763,22.868,18.498,18.489,22.877]
[1688223125482,22.868,18.498,18.487,22.879]
[1688223143894,22.865,18.5,18.487,22.879]
[1688223144098,12.76964669,18.499,18.487,22.879]
[1688223144789,35.63564669,18.499,18.487,22.879]
[1688223144987,22.866,18.499,18.487,22.879]
[1688223146096,22.866,18.499,18.49,24.37]
[1688223146299,22.866,18.499,18.49,47.246]
[1688223149491,22.866,18.499,18.49,24.37]
[1688223151992,22.866,18.499,18.487,22.88]
[1688223157416,55.0,18.498,18.484,22.884]
[1688223157597,22.872,18.494,18.484,22.884]
[1688223159501,55.0,18.498,18.484,22.884]
[1688223159807,55.0,18.499,18.484,22.884]
[1688223160918,22.868,18.498,18.484,22.884]
[1688223161118,55.0,18.497,18.484,22.884]
[1688223161417,22.87,18.496,18.484,22.884]
[1688223164202,22.867,18.498,18.484,22.884]
[1688223164607,22.867,18.498,18.485,55.0]
[1688223164810,22.867,18.498,18.488,22.878]
[1688223165327,47.015,18.5,18.488,22.878]
[1688223165521,64.88139926,18.499,18.488,22.878]
[1688223165722,22.867,18.498,18.488,22.878]
[1688223166226,55.0,18.497,18.482,20.0]
[1688223166414,22.871,18.495,18.487,22.88]
[1688223167116,77.869,18.497,18.487,22.88]
[1688223170830,55.0,18.497,18.487,22.88]
[1688223171031,55.0,18.498,18.487,22.88]
[1688223171626,77.867,18.498,18.487,22.88]
[1688223172533,55.0,18.498,18.487,22.88]
[1688223172716,55.0,18.499,18.487,22.88]
[1688223173230,77.866,18.499,18.487,22.88]
[1688223184019,22.866,18.499,18.487,22.88]
[1688223184236,6.99751536,18.5,18.493,22.872]
[1688223184740,6.99751536,18.502,18.493,22.872]
[1688223184924,20.0,18.501,18.493,22.872]
[1688223185320,20.0,18.502,18.493,22.872]
[1688223185529,1.19731879,18.501,18.493,22.872]
[1688223188342,24.06031879,18.501,18.493,22.872]
[1688223188639,22.863,18.501,18.493,22.872]
[1688223190844,22.863,18.501,18.491,22.875]
[1688223191045,1.9890202,18.5,18.492,22.874]
[1688223191254,24.8540202,18.5,18.492,22.874]
[1688223191436,22.865,18.5,18.492,22.874]
[1688223196355,22.865,18.5,18.49,24.37]
[1688223197753,1.07228916,18.499,18.49,24.37]
[1688223197954,23.93828916,18.499,18.491,22.875]
[1688223198142,22.866,18.499,18.491,22.875]
[1688223199655,26.6993918,18.505,18.492,75.0]
[1688223199853,5.88047406,18.504,18.495,22.869]
[1688223200154,22.859,18.505,18.495,22.869]
[1688223200941,7.25900091,18.504,18.495,22.869]
[1688223203180,9.97232814,18.506,18.495,22.869]
[1688223203673,11.47942396,18.508,18.495,22.869]
[1688223203868,55.0,18.507,18.495,22.869]
[1688223204072,11.47942396,18.506,18.495,22.869]
[1688223204267,11.47942396,18.507,18.495,22.869]
[1688223208172,34.33542396,18.507,18.495,22.869]
[1688223210779,55.0,18.506,18.495,22.869]
[1688223210980,11.47942396,18.505,18.495,22.869]
[1688223211586,11.47942396,18.506,18.495,22.869]
[1688223222379,13.70440577,18.508,18.495,33.70619922]
[1688223222791,36.55940577,18.508,18.495,33.70619922]
[1688223225384,55.0,18.507,18.495,22.869]
[1688223225692,36.56140577,18.506,18.495,22.869]
[1688223227399,55.0,18.505,18.495,22.869]
[1688223227582,13.70440577,18.504,18.495,22.869]
[1688223227895,13.70440577,18.505,18.495,22.869]
[1688223231483,55.0,18.504,18.495,22.869]
[1688223231692,22.863,18.502,18.486,58.906]
[1688223231897,24.32,18.5,18.486,58.906]
[1688223232090,22.868,18.498,18.489,22.877]
[1688223232277,55.0,18.497,18.489,22.877]
[1688223232485,77.869,18.497,18.489,22.877]
[1688223237097,77.869,18.497,18.483,153.6202]
[1688223237285,77.869,18.497,18.487,22.88]
[1688223240511,77.869,18.497,18.485,22.882]
[1688223246895,24.15,18.49,18.474,99.806]
[1688223247203,77.879,18.489,18.47,24.37]
[1688223247390,77.879,18.489,18.473,22.897]
[1688223248504,24.15,18.48,18.463,207.426]
[1688223248690,22.895,18.476,18.467,22.905]
[1688223249203,77.896,18.475,18.465,22.907]
[1688223250101,55.0,18.475,18.465,22.907]
[1688223250302,55.0,18.476,18.465,22.907]
[1688223251507,77.894,18.476,18.465,22.907]
[1688223252507,55.0,18.476,18.465,22.907]
[1688223252900,22.893,18.478,18.465,22.907]
[1688223253293,47.04,18.48,18.465,22.907]
[1688223253494,47.04,18.48,18.466,55.0]
[1688223253698,47.04,18.48,18.47,22.901]
[1688223254609,22.891,18.479,18.47,22.901]
[1688223256003,55.0,18.478,18.47,22.901]
[1688223256408,22.892,18.478,18.47,22.901]
[1688223257405,22.892,18.478,18.463,99.806]
[1688223257602,22.892,18.478,18.464,55.0]
[1688223258898,22.892,18.478,18.468,22.904]
[1688223259804,22.89,18.48,18.468,22.904]
[1688223259999,22.89,18.48,18.47,24.37]
[1688223260306,22.89,18.48,18.472,22.899]
[1688223260907,22.89,18.48,18.47,47.27]
[1688223262915,22.89,18.48,18.47,24.37]
[1688223264310,47.21,18.48,18.463,99.806]
[1688223264497,22.895,18.476,18.467,22.904]
[1688223265609,55.0,18.479,18.467,22.904]
[1688223266408,22.894,18.476,18.467,22.904]
[1688223275620,55.0,18.475,18.467,22.904]
[1688223275821,77.896,18.475,18.467,22.904]
[1688223276912,22.896,18.475,18.467,22.904]
[1688223277625,22.893,18.477,18.467,22.904]
[1688223281317,55.0,18.476,18.467,22.904]
[1688223281631,77.895,18.476,18.467,22.904]
[1688223288135,47.21,18.48,18.467,22.904]
[1688223290030,24.37,18.482,18.47,24.37]
[1688223290237,24.37,18.482,18.473,81.847]
[1688223294428,22.879,18.489,18.473,81.847]
[1688223294635,55.0,18.488,18.473,81.847]
[1688223294936,55.0,18.489,18.473,81.847]
[1688223295931,77.88,18.488,18.473,81.847]
[1688223296125,55.0,18.487,18.473,81.847]
[1688223296327,55.0,18.488,18.473,81.847]